bitfinex-derivatives/quotes_ETHF0:USTF0_20260208
["timestamp","ask_amount","ask_price","bid_price","bid_amount"]
[1770594256496,11.74180184,2091.6,2090.3,11.53861461]
[1770594256897,11.74180184,2091.6,2090.4,0.23934]
[1770594257095,0.00522532,2091.6,2090.7,11.55034707]
[1770594257399,5.44898746,2092.5,2090.7,11.55034707]
[1770594257400,11.12854769,2092.6,2091.6,11.55034707]
[1770594258200,11.13396691,2092.6,2091.6,11.55475073]
[1770594258598,11.13396691,2092.6,2091.6,0.00440366]
[1770594259102,11.13396691,2092.6,2091.6,11.55475073]
[1770594259601,11.12854769,2092.8,2091.6,11.55475073]
[1770594259800,11.12854769,2092.8,2091.6,0.00440366]
[1770594260002,11.12854769,2092.8,2091.6,11.55475073]
[1770594260497,11.13215139,2092.8,2091.6,11.55475073]
[1770594260898,11.12854769,2092.9,2092.0,11.55034707]
[1770594261197,11.12854769,2093.3,2092.0,11.55034707]
[1770594261401,11.12854769,2093.3,2091.7,11.78954707]
[1770594261999,11.13297856,2093.3,2091.7,11.78954707]
[1770594264104,11.13297856,2093.3,2091.7,11.55034707]
[1770594265203,11.13297856,2093.3,2091.7,11.78954707]
[1770594265707,11.13297856,2093.3,2091.7,11.55034707]
[1770594267900,11.13297856,2093.3,2091.7,11.78953707]
[1770594268408,11.13297856,2093.3,2091.7,11.55034707]
[1770594269898,11.13297856,2093.3,2091.9,11.55034707]
[1770594270605,11.13297856,2093.3,2092.1,11.55034707]
[1770594271004,0.00443087,2093.3,2092.1,11.55034707]
[1770594271308,11.12854769,2093.6,2092.3,11.55034707]
[1770594272706,11.13368846,2093.6,2092.3,11.55034707]
[1770594277911,11.13368846,2093.6,2092.0,11.55034707]
[1770594278101,0.239,2093.5,2092.0,11.55034707]
[1770594278413,11.12854769,2093.2,2091.7,11.55034707]
[1770594280307,11.36757769,2093.2,2091.6,0.00440366]
[1770594280509,11.36757769,2093.2,2091.6,11.55475073]
[1770594281314,11.12854769,2093.1,2091.6,11.55475073]
[1770594282214,11.12854769,2093.1,2091.6,0.00440366]
[1770594282215,11.12854769,2092.7,2091.6,0.00440366]
[1770594282515,11.12854769,2092.7,2091.6,11.55475073]
[1770594282711,11.12854769,2092.5,2091.6,11.55475073]
[1770594283414,2.779082,2092.9,2091.6,11.55475073]
[1770594283606,11.12854769,2093.0,2091.8,11.55034707]
[1770594284312,11.12854769,2093.4,2091.8,11.55034707]
[1770594284515,11.12854769,2093.4,2092.0,11.55034707]
[1770594286109,11.12854769,2093.4,2092.0,14.3741435]
[1770594286619,11.12854769,2093.4,2092.0,11.55034707]
[1770594287418,11.12854769,2093.4,2092.0,14.3741435]
[1770594287915,10.85126221,2093.2,2092.0,11.55034707]
[1770594288218,10.85126221,2093.4,2092.3,11.36347797]
[1770594290018,10.85126221,2093.3,2092.3,11.36347797]
[1770594292419,10.85126221,2093.3,2092.1,0.23915]
[1770594292420,10.85126221,2093.2,2092.1,11.60262797]
[1770594293012,10.85126221,2093.2,2092.1,11.36347797]
[1770594293218,10.85126221,2093.0,2092.1,11.36347797]
[1770594294420,10.85126221,2092.9,2092.1,11.36347797]
[1770594295322,30.901,2093.3,2092.1,11.36347797]
[1770594295323,10.85126221,2093.5,2092.4,11.36347797]
[1770594296021,10.85126221,2093.3,2092.2,11.36347797]
[1770594298624,10.85126221,2093.1,2092.0,11.36347797]
[1770594299321,52.11045346,2093.2,2092.1,6.32734564]
[1770594299519,10.85126221,2093.1,2092.2,11.36347797]
[1770594300429,10.85126221,2093.1,2092.0,14.1872744]
[1770594300629,10.85126221,2093.1,2092.0,11.36347797]
[1770594301019,16.30024967,2093.3,2092.2,11.36347797]
[1770594301218,10.85126221,2093.3,2092.2,11.36347797]
[1770594301522,52.11045346,2093.5,2092.4,11.36347797]
[1770594301719,10.85126221,2093.5,2092.4,11.36347797]
[1770594302123,10.85126221,2093.5,2092.4,11.60258797]
[1770594302523,0.00514077,2093.6,2092.6,11.36347797]
[1770594302727,0.00514077,2093.6,2092.6,11.60256797]
[1770594302930,0.00514077,2093.6,2092.7,11.36347797]
[1770594303131,52.11045346,2094.2,2093.0,11.36347797]
[1770594303326,10.85126221,2094.2,2093.0,11.60252797]
[1770594303523,41.25919125,2094.4,2093.0,11.60252797]
[1770594303524,52.11045346,2094.4,2093.3,11.36347797]
[1770594303725,10.85126221,2094.6,2093.4,11.36347797]
[1770594304023,10.85126221,2094.0,2093.4,0.00592402]
[1770594304229,10.85126221,2093.9,2092.6,11.36347797]
[1770594304430,10.85126221,2093.6,2092.3,11.36347797]
[1770594304630,10.85126221,2093.5,2092.3,11.36347797]
[1770594305432,10.85126221,2093.5,2092.3,11.36790586]
[1770594306333,10.85126221,2094.1,2092.8,11.36347797]
[1770594307927,10.85126221,2093.7,2092.3,0.00442789]
[1770594308122,11.09025221,2093.5,2092.3,0.00442789]
[1770594308325,11.09029221,2093.2,2091.8,11.36347797]
[1770594308529,10.85126221,2092.8,2091.6,11.36347797]
[1770594308835,10.85126221,2092.6,2091.6,11.36347797]
[1770594309334,10.85624498,2092.6,2091.6,11.36941131]
[1770594309531,5.44898746,2093.2,2091.6,11.36941131]
[1770594309532,41.25919125,2093.3,2092.0,11.36347797]
[1770594309833,10.85126221,2093.4,2092.2,11.36347797]
[1770594310427,10.85126221,2093.4,2092.0,14.1872744]
[1770594310734,10.85126221,2093.2,2092.0,11.36347797]
[1770594311230,10.85126221,2093.2,2091.7,11.36347797]
[1770594311734,10.85126221,2093.1,2091.7,11.36347797]
[1770594311934,10.85126221,2092.9,2091.7,11.36347797]
[1770594312127,10.85126221,2092.9,2091.6,0.00593334]
[1770594312128,10.85126221,2092.9,2091.6,11.36941131]
[1770594312430,10.85126221,2092.9,2091.6,0.00593334]
[1770594313236,10.85126221,2092.9,2091.6,11.36941131]
[1770594314136,10.85126221,2092.7,2091.6,0.00593334]
[1770594314436,10.85126221,2092.6,2091.6,0.00593334]
[1770594314933,10.85126221,2092.6,2091.6,11.36941131]
[1770594315131,11.51325228,2093.1,2091.6,11.36941131]
[1770594315333,11.51325228,2093.1,2091.6,14.19320774]
[1770594315728,11.51325228,2093.1,2091.8,10.4305923]
[1770594315927,11.51325228,2093.1,2091.8,10.6697723]
[1770594316128,11.51325228,2093.1,2092.0,10.55435054]
[1770594316330,30.902,2093.0,2091.7,10.55435054]
[1770594316635,10.99496561,2092.9,2091.6,0.00593334]
[1770594316834,10.99496561,2092.2,2091.0,10.55435054]
[1770594317135,0.23913,2092.3,2091.0,10.55435054]
[1770594317136,10.99496561,2092.1,2091.0,10.55435054]
[1770594317332,10.99496561,2092.1,2090.7,10.55435054]
[1770594317730,10.99496561,2092.1,2090.7,10.5590135]
[1770594318240,10.99496561,2092.4,2090.9,10.55435054]
[1770594318437,10.99496561,2092.4,2091.2,10.55435054]
[1770594319339,10.99496561,2092.4,2090.8,10.55435054]
[1770594320536,10.99496561,2092.4,2091.0,10.79362054]
[1770594321041,10.99496561,2092.4,2091.2,10.55435054]
[1770594322332,10.99496561,2092.4,2090.9,4.27330026]
[1770594322333,10.99496561,2092.4,2090.9,10.55435054]
[1770594322632,11.23408561,2092.4,2090.9,10.55435054]
[1770594323141,10.99496561,2092.2,2090.9,10.55435054]
[1770594323446,10.99496561,2092.1,2090.9,10.55435054]
[1770594323841,11.23414561,2091.9,2090.7,0.00466296]
[1770594324048,11.24006935,2091.9,2090.7,0.00466296]
[1770594325144,11.00088935,2091.9,2090.7,10.5590135]
[1770594325742,11.00088935,2091.9,2090.7,0.00466296]
[1770594326944,11.00088935,2091.9,2090.7,10.5590135]
[1770594327449,11.00088935,2091.9,2090.7,0.00466296]
[1770594327841,11.00088935,2091.9,2090.7,10.5590135]
[1770594331242,0.00592374,2091.9,2090.7,10.5590135]
[1770594331450,11.00088935,2091.9,2090.7,10.5590135]
[1770594331647,0.00592374,2091.9,2090.7,10.7983235]
[1770594331852,0.00592374,2091.9,2090.9,10.55435054]
[1770594332351,0.00592374,2091.9,2090.9,10.79364054]
[1770594333246,10.99496561,2092.6,2091.2,10.55435054]
[1770594333445,10.99496561,2092.6,2091.2,10.79360054]
[1770594333651,10.99496561,2092.6,2091.4,10.55435054]
[1770594334238,10.99854751,2092.6,2091.4,10.55435054]
[1770594334438,0.0035819,2092.6,2091.7,10.55435054]
[1770594334644,10.99496561,2092.9,2091.7,10.55435054]
[1770594334949,10.99496561,2092.9,2091.9,10.55435054]
[1770594335549,10.99991261,2092.9,2091.9,10.55435054]
[1770594335744,10.99496561,2093.3,2091.9,10.79352054]
[1770594335952,10.99496561,2093.6,2092.1,10.55435054]
[1770594336346,36.36298746,2094.3,2092.5,10.55435054]
[1770594336347,10.99496561,2094.1,2092.5,10.55435054]
[1770594336547,10.99496561,2094.1,2092.5,10.79346054]
[1770594336739,10.99496561,2094.1,2092.7,10.55435054]
[1770594336942,10.99844703,2094.1,2092.7,10.55435054]
[1770594337143,10.99844703,2094.1,2092.8,6.11271839]
[1770594337345,10.99844703,2094.1,2092.7,10.55435054]
[1770594337551,10.99496561,2094.0,2092.7,10.55435054]
[1770594337739,10.99496561,2094.0,2092.6,0.23909]
[1770594337740,10.99496561,2094.0,2092.9,10.55435054]
[1770594337948,10.99496561,2094.8,2093.1,10.55435054]
[1770594338144,10.99496561,2094.8,2093.2,10.55435054]
[1770594338349,10.99496561,2094.8,2093.3,10.55435054]
[1770594338656,10.99496561,2095.3,2093.5,10.55435054]
[1770594339056,11.00079379,2095.3,2093.7,10.55435054]
[1770594339452,11.00079379,2095.3,2093.9,10.55435054]
[1770594339749,10.99496561,2095.1,2093.9,10.55435054]
[1770594339956,10.99496561,2095.1,2093.2,10.55435054]
[1770594340158,10.99496561,2095.1,2093.5,10.55435054]
[1770594341042,10.99496561,2094.9,2093.5,10.55435054]
[1770594341355,10.99496561,2094.9,2093.2,10.55435054]
[1770594341847,10.99496561,2094.9,2093.4,10.55435054]
[1770594342355,10.99496561,2094.9,2093.6,10.55435054]
[1770594342555,10.99496561,2095.2,2093.6,10.79332054]
[1770594342751,10.99496561,2095.2,2093.7,6.30415671]
[1770594342957,10.99496561,2095.2,2093.8,10.55435054]
[1770594343455,10.99496561,2095.2,2093.9,6.30415671]
[1770594343654,10.99496561,2095.2,2093.8,10.55435054]
[1770594344251,0.00582818,2095.3,2094.0,10.55435054]
[1770594344446,0.00582818,2095.3,2094.0,10.55906815]
[1770594344647,0.12186509,2095.9,2094.0,10.55906815]
[1770594344648,0.12186509,2095.9,2094.6,10.55435054]
[1770594344853,0.12186509,2095.9,2094.6,10.79321054]
[1770594345046,0.12186509,2095.9,2094.8,10.76437784]
[1770594345357,0.12186509,2095.9,2095.0,10.76437784]
[1770594345561,0.0052978,2095.9,2095.0,10.76437784]
[1770594345859,9.85017341,2096.5,2095.2,10.76437784]
[1770594346256,9.85017341,2097.4,2095.6,10.76437784]
[1770594346558,9.85017341,2097.1,2095.3,10.76437784]
[1770594346856,41.25919125,2097.8,2095.1,10.76437784]
[1770594346857,9.85017341,2096.9,2095.1,10.76437784]
[1770594347254,9.85017341,2096.9,2095.3,10.76437784]
[1770594347951,9.85017341,2096.9,2095.3,10.76895697]
[1770594348153,9.85017341,2096.7,2095.3,10.76895697]
[1770594348358,9.85017341,2096.7,2095.5,10.76437784]
[1770594348654,9.85017341,2096.7,2095.6,6.3110716]
[1770594348854,9.85017341,2096.7,2095.7,10.76437784]
[1770594349446,9.85017341,2096.7,2095.4,10.76437784]
[1770594350855,9.85017341,2096.7,2095.3,0.00457913]
[1770594351155,40.8,2097.2,2095.3,0.00457913]
[1770594351156,9.85017341,2096.5,2095.3,0.00457913]
[1770594351561,10.08884341,2096.3,2094.4,10.76437784]
[1770594351749,0.23874,2095.8,2094.1,10.76437784]
[1770594352057,9.85017341,2095.7,2094.1,10.76437784]
[1770594352253,9.85017341,2095.7,2094.2,6.25934355]
[1770594352452,9.85017341,2095.7,2094.3,10.76437784]
[1770594352753,0.00545157,2095.7,2094.5,10.76437784]
[1770594352959,9.85562498,2095.7,2094.5,11.00324784]
[1770594353352,9.85017341,2096.2,2094.7,11.00322784]
[1770594353861,9.85017341,2096.2,2094.9,10.76437784]
[1770594354450,9.85374976,2096.2,2094.9,10.76437784]
[1770594355549,9.85374976,2096.2,2094.3,10.77001982]
[1770594355550,10.09243976,2096.2,2094.3,10.77001982]
[1770594356060,9.85374976,2096.2,2094.5,10.76437784]
[1770594356761,9.85374976,2096.2,2094.7,10.76437784]
[1770594357163,9.85374976,2096.2,2094.5,16.91698864]
[1770594357461,9.85017341,2095.9,2094.5,10.76437784]
[1770594358060,0.00357635,2096.2,2094.3,0.00564198]
[1770594358061,9.85017341,2095.7,2094.3,0.00564198]
[1770594358358,9.85017341,2095.5,2094.3,0.00564198]
[1770594359955,9.85017341,2095.5,2094.3,10.77001982]
[1770594361052,9.85017341,2095.5,2094.3,0.00564198]
[1770594361251,9.85017341,2094.6,2092.9,10.76437784]
[1770594361662,2.7425979,2094.9,2092.9,10.76437784]
[1770594361663,10.08906341,2094.4,2092.9,10.76437784]
[1770594361861,5.44898746,2095.2,2092.6,10.76437784]
[1770594361862,9.85017341,2094.1,2092.6,10.76437784]
[1770594362361,9.85017341,2093.9,2092.3,10.76437784]
[1770594362863,9.85626914,2094.1,2092.5,10.76437784]
[1770594363561,9.85017341,2093.9,2092.5,10.76437784]
[1770594363863,10.08912341,2093.9,2092.5,10.76437784]
[1770594364862,10.08912341,2093.9,2092.2,10.76808298]
[1770594365259,9.85017341,2093.9,2092.4,10.76437784]
[1770594365657,9.85017341,2093.6,2092.2,0.00370514]
[1770594365858,40.8,2094.0,2092.2,0.00370514]
[1770594365859,9.85017341,2093.4,2092.2,0.00370514]
[1770594366061,9.85017341,2093.1,2091.5,10.76437784]
[1770594366361,9.85017341,2093.1,2091.1,10.76437784]
[1770594366754,9.85017341,2093.1,2091.8,0.23918]
[1770594366951,9.85017341,2093.1,2091.9,10.76437784]
[1770594367661,9.85017341,2093.1,2092.1,10.76437784]
[1770594367861,9.85017341,2093.7,2092.1,10.76437784]
[1770594370565,9.85017341,2093.7,2092.1,11.00352784]
[1770594370866,9.85017341,2093.7,2091.8,0.00394717]
[1770594370867,10.08914341,2093.7,2091.8,10.76832501]
[1770594371159,10.08917341,2093.5,2091.8,10.76832501]
[1770594371360,10.08919341,2093.3,2091.8,0.00394717]
[1770594371552,9.85017341,2093.3,2091.8,10.76832501]
[1770594371858,9.85017341,2093.1,2091.8,10.76832501]
[1770594374870,9.85017341,2093.1,2092.0,10.76437784]
[1770594375361,40.8,2093.7,2092.1,6.28308139]
[1770594375571,10.37759562,2093.6,2092.2,10.08550149]
[1770594378469,9.52014734,2093.4,2091.8,9.63166398]
[1770594378865,9.52014734,2093.2,2091.8,9.63166398]
[1770594379064,9.75917734,2093.2,2091.8,0.00394717]
[1770594379467,9.75917734,2093.2,2091.8,9.63166398]
[1770594380373,9.52014734,2093.2,2091.8,9.63166398]
[1770594380572,9.52014734,2093.2,2091.8,9.87084398]
[1770594381162,9.52014734,2093.2,2092.0,9.86687681]
[1770594382271,40.8,2093.7,2092.2,9.62771681]
[1770594382469,9.52014734,2094.0,2092.8,9.62771681]
[1770594382769,9.52014734,2094.0,2092.8,9.86677681]
[1770594383868,9.52014734,2094.0,2092.8,9.62771681]
[1770594384074,9.52014734,2094.0,2092.3,9.62771681]
[1770594384275,9.52014734,2093.8,2092.3,9.62771681]
[1770594385071,9.52014734,2093.8,2091.8,0.00394717]
[1770594385072,9.52014734,2093.8,2092.5,9.62771681]
[1770594386377,9.52014734,2093.8,2092.7,9.62771681]
[1770594386878,9.52014734,2093.8,2092.7,9.86679681]
[1770594387071,9.52624307,2094.1,2092.9,9.62771681]
[1770594388169,9.52624307,2094.1,2092.7,9.62771681]
[1770594388874,9.52624307,2094.1,2092.4,9.62771681]
[1770594389469,9.52624307,2094.1,2092.6,9.62771681]
[1770594389875,9.52624307,2094.1,2092.6,9.86680681]
[1770594390984,9.52014734,2093.9,2092.3,9.62771681]
[1770594391185,9.52014734,2093.8,2092.3,9.62771681]
[1770594392482,9.52014734,2093.7,2092.3,9.62771681]
[1770594392783,9.52014734,2093.4,2092.2,9.86685681]
[1770594393081,9.52014734,2093.4,2092.2,9.62771681]
[1770594393282,9.52014734,2093.3,2091.9,9.62771681]
[1770594393485,9.52014734,2093.2,2091.9,9.62771681]
[1770594393675,9.52014734,2093.1,2091.9,9.62771681]
[1770594395176,9.52014734,2093.1,2091.8,0.24313717]
[1770594395177,9.52014734,2093.1,2091.8,0.00394717]
[1770594395373,9.52014734,2092.9,2091.8,0.00394717]
[1770594395678,9.52014734,2092.7,2091.8,0.00394717]
[1770594396272,9.52014734,2092.7,2091.8,9.63166398]
[1770594397085,9.52014734,2092.9,2092.0,9.62771681]
[1770594397484,5.44898746,2093.5,2092.7,9.62771681]
[1770594397485,2.76548167,2093.5,2092.7,9.62771681]
[1770594397690,9.52014734,2093.9,2092.7,9.62771681]
[1770594397889,9.52014734,2093.9,2093.0,9.62771681]
[1770594398089,0.00609573,2094.1,2093.0,9.62771681]
[1770594398090,9.52624307,2094.1,2093.0,9.86675681]
[1770594398391,0.00609573,2094.1,2093.2,9.62771681]
[1770594398590,0.00609573,2094.1,2093.5,9.62771681]
[1770594398890,9.52014734,2095.0,2093.7,9.86668681]
[1770594399088,9.52014734,2095.0,2093.9,9.62771681]
[1770594399484,9.52014734,2095.3,2093.9,9.62771681]
[1770594399686,9.525608,2095.3,2093.9,9.62771681]
[1770594399879,9.52014734,2095.2,2093.9,9.62771681]
[1770594400888,0.00546066,2095.3,2094.3,9.62771681]
[1770594401078,9.52014734,2095.7,2094.3,9.62771681]
[1770594401285,9.52014734,2095.7,2094.1,9.62771681]
[1770594401583,9.52014734,2095.5,2094.1,9.62771681]
[1770594401784,9.52014734,2095.5,2093.7,9.62771681]
[1770594401983,9.52014734,2095.4,2093.7,9.62771681]
[1770594402484,9.52014734,2095.2,2093.7,9.62771681]
[1770594402889,0.0053054,2095.5,2094.5,9.62771681]
[1770594403693,2.76548167,2096.4,2094.0,25.45147312]
[1770594403694,9.52014734,2096.5,2094.7,9.86656681]
[1770594404093,9.52014734,2096.5,2094.8,6.14293217]
[1770594404294,9.52014734,2096.5,2094.7,10.12669396]
[1770594404295,9.52014734,2096.5,2094.9,9.62771681]
[1770594404592,9.52014734,2096.3,2094.9,9.62771681]
[1770594404788,9.52014734,2096.3,2094.6,9.62771681]
[1770594405089,9.52014734,2096.3,2094.2,9.62771681]
[1770594405278,9.29073975,2096.1,2094.2,9.62771681]
[1770594405482,9.29073975,2095.9,2094.2,9.62771681]
[1770594406491,9.52946975,2095.9,2094.2,9.62771681]
[1770594406687,9.52946975,2095.9,2093.7,9.834052]
[1770594406992,2.76548167,2096.0,2093.7,10.073012]
[1770594406993,9.29073975,2095.6,2093.7,10.073012]
[1770594407193,9.29073975,2095.4,2093.7,10.073012]
[1770594408588,9.29073975,2095.4,2093.9,10.072992]
[1770594408891,9.29073975,2095.4,2094.1,9.834052]
[1770594409290,9.29073975,2095.4,2094.1,10.072972]
[1770594409485,9.29073975,2095.6,2094.4,9.834052]
[1770594412495,9.29073975,2095.6,2093.6,9.834052]
[1770594412885,9.29073975,2095.4,2093.6,9.834052]
[1770594413087,9.29073975,2095.3,2093.6,9.834052]
[1770594415094,9.29073975,2095.3,2093.6,10.073032]
[1770594415297,9.29073975,2095.3,2093.8,9.834052]
[1770594416797,9.29073975,2095.3,2093.8,10.073002]
[1770594417296,9.29073975,2095.3,2094.0,9.834052]
[1770594418294,9.29073975,2095.8,2094.6,9.834052]
[1770594418894,9.29073975,2095.7,2094.6,9.834052]
[1770594419995,9.29073975,2096.0,2094.7,0.23885]
[1770594420193,9.29073975,2096.0,2095.0,9.834052]
[1770594420398,9.29073975,2096.0,2095.0,9.83875855]
[1770594420603,40.8,2096.2,2095.2,9.834052]
[1770594420800,9.29073975,2096.3,2095.2,9.834052]
[1770594421595,9.29073975,2096.3,2095.0,0.00470655]
[1770594421795,9.52943975,2096.1,2095.0,0.00470655]
[1770594421993,9.29073975,2095.9,2094.1,9.834052]
[1770594422194,9.29073975,2095.7,2094.1,9.834052]
[1770594422591,9.29073975,2095.7,2094.1,10.072962]
[1770594422797,9.29073975,2095.7,2093.6,22.758]
[1770594422798,9.29073975,2095.7,2094.6,9.834052]
[1770594423001,9.29073975,2095.7,2094.6,9.83757565]
[1770594423401,9.29073975,2096.0,2094.8,9.834052]
[1770594424698,9.29073975,2096.0,2094.6,0.00352365]
[1770594424895,9.52945975,2096.0,2094.6,0.00352365]
[1770594425503,2.76548167,2096.1,2093.8,9.834052]
[1770594425504,9.29073975,2095.6,2093.8,9.834052]
[1770594425704,9.29073975,2095.4,2093.8,9.834052]
[1770594426099,9.29073975,2095.4,2094.0,9.834052]
[1770594426498,9.29073975,2095.4,2094.2,9.834052]
[1770594427299,9.29073975,2095.3,2094.2,9.834052]
[1770594427700,9.29073975,2095.3,2094.1,0.23892]
[1770594427902,9.29073975,2095.2,2094.0,0.00540403]
[1770594428110,9.29073975,2095.1,2094.0,9.83945603]
[1770594428403,9.29073975,2095.1,2094.0,0.00540403]
[1770594428608,9.29073975,2095.1,2093.4,9.834052]
[1770594428609,9.29073975,2094.7,2093.4,9.834052]
[1770594428906,12.05622142,2095.0,2093.4,9.834052]
[1770594429106,47.7837894,2095.6,2094.5,9.834052]
[1770594429107,2.76548167,2095.6,2094.5,9.834052]
[1770594429304,9.29073975,2095.7,2094.5,9.834052]
[1770594429494,12.05622142,2096.0,2094.5,10.072922]
[1770594429695,9.29455042,2096.0,2094.7,9.834052]
[1770594429903,9.29455042,2096.0,2094.9,9.834052]
[1770594430396,0.00381067,2096.0,2094.9,9.834052]
[1770594430806,9.29073975,2096.5,2095.1,9.834052]
[1770594431911,9.29481025,2096.5,2095.1,9.834052]
[1770594433309,9.29073975,2096.4,2095.1,9.834052]
[1770594433807,9.29073975,2096.3,2095.1,9.834052]
[1770594434710,9.29073975,2096.3,2095.1,10.072862]
[1770594435306,9.29073975,2096.3,2095.1,9.834052]
[1770594435501,8.702105,2096.5,2095.1,9.834052]
[1770594435706,0.0040705,2096.5,2095.4,9.35922412]
[1770594436812,9.20626644,2096.5,2095.4,9.35922412]
[1770594437010,9.20626644,2096.5,2095.6,9.34640583]
[1770594437011,0.0040705,2096.5,2095.6,9.34640583]
[1770594437213,9.20219594,2096.8,2095.6,9.34640583]
[1770594437605,9.20219594,2096.8,2095.3,2.81747312]
[1770594437606,2.76548167,2097.4,2095.8,9.10765583]
[1770594437807,9.20219594,2097.8,2096.7,9.10765583]
[1770594438210,9.20219594,2097.8,2096.7,0.00390955]
[1770594438211,9.20219594,2097.7,2096.7,0.00390955]
[1770594439015,11.96767761,2097.7,2096.7,0.00390955]
[1770594439216,9.20219594,2097.5,2096.7,0.00390955]
[1770594439712,9.20219594,2097.5,2095.8,9.10765583]
[1770594439914,9.20219594,2097.2,2095.5,9.10765583]
[1770594440304,9.20219594,2097.1,2095.5,9.10765583]
[1770594440705,9.20219594,2097.1,2095.5,9.11330382]
[1770594440914,9.20219594,2097.1,2095.7,9.10765583]
[1770594441406,9.20219594,2097.1,2095.7,9.34639583]
[1770594441714,9.20219594,2096.9,2095.8,6.29984225]
[1770594442014,9.20219594,2096.8,2095.5,0.00564799]
[1770594442512,9.20219594,2096.8,2094.7,10.34064757]
[1770594442513,9.20219594,2096.6,2094.9,9.10765583]
[1770594442820,9.20219594,2096.4,2094.9,9.10765583]
[1770594443612,2.76548167,2096.6,2094.9,9.10765583]
[1770594443613,9.20219594,2096.6,2095.4,9.10765583]
[1770594443811,9.20219594,2096.6,2095.1,9.10765583]
[1770594444011,9.20219594,2096.5,2095.1,9.10765583]
[1770594444218,9.20219594,2096.3,2095.1,9.10765583]
[1770594444415,9.20646623,2096.3,2095.1,9.10765583]
[1770594445012,9.20646623,2096.3,2094.9,0.00516718]
[1770594445207,0.00427029,2096.3,2094.9,9.11282301]
[1770594445412,9.20219594,2096.8,2095.4,9.34642583]
[1770594445807,9.20219594,2096.8,2095.6,9.10765583]
[1770594446412,9.20688681,2096.8,2095.6,9.10765583]
[1770594447716,2.76548167,2097.6,2096.3,9.10765583]
[1770594448016,6.9837894,2098.4,2096.3,9.10765583]
[1770594448017,9.20219594,2097.5,2096.3,9.10765583]
[1770594448818,9.2069515,2097.5,2096.3,9.10765583]
[1770594449116,9.2069515,2097.5,2095.1,5.6457292]
[1770594449117,9.20219594,2096.6,2094.9,9.11282301]
[1770594449311,9.20219594,2096.2,2094.9,0.00516718]
[1770594449512,9.20219594,2096.1,2094.9,0.00516718]
[1770594450011,9.20219594,2096.0,2094.9,0.00516718]
[1770594450217,9.20795701,2096.0,2094.9,0.00516718]
[1770594452221,9.20219594,2095.9,2094.9,0.00516718]
[1770594452921,9.20219594,2095.7,2094.1,9.10765583]
[1770594453120,9.20219594,2095.6,2094.1,9.10765583]
[1770594453418,9.20219594,2095.4,2093.8,15.4407165]
[1770594453623,9.20219594,2095.4,2093.8,9.10765583]
[1770594453828,11.96767761,2095.2,2093.8,0.00578142]
[1770594454122,11.96767761,2095.0,2093.8,0.00578142]
[1770594454324,9.20219594,2094.9,2093.8,0.00578142]
[1770594454624,11.96767761,2094.9,2093.8,0.00578142]
[1770594454828,11.96767761,2094.9,2092.3,4.26275127]
[1770594454829,9.20219594,2094.5,2092.3,9.10765583]
[1770594455021,9.20219594,2094.2,2092.3,9.10765583]
[1770594455321,9.20219594,2094.2,2092.3,9.3721767]
[1770594455519,9.20219594,2094.2,2092.5,9.34675583]
[1770594455714,9.20729543,2094.2,2092.5,9.35106295]
[1770594455926,9.20729543,2094.2,2092.5,9.11196295]
[1770594456120,9.20219594,2094.1,2092.5,9.11196295]
[1770594457020,9.20219594,2094.1,2092.5,0.00430712]
[1770594457228,12.20659761,2094.1,2092.5,0.00430712]
[1770594457427,9.20219594,2094.0,2092.5,0.00430712]
[1770594457628,9.20219594,2093.9,2092.5,0.00430712]
[1770594458233,9.20219594,2093.7,2091.9,9.10765583]
[1770594459040,9.20219594,2093.7,2092.1,9.10765583]
[1770594459243,9.20219594,2093.6,2092.1,9.11249528]
[1770594459537,9.20219594,2094.1,2092.3,9.10765583]
[1770594460042,9.20219594,2094.0,2092.5,9.10765583]
[1770594460241,9.20219594,2094.0,2092.2,9.10765583]
[1770594461540,9.20219594,2094.0,2092.4,9.10765583]
[1770594463641,9.20219594,2094.0,2092.1,0.00483945]
[1770594463841,9.20219594,2094.0,2092.1,9.11249528]
[1770594465646,8.95997601,2093.8,2092.1,9.11249528]
[1770594467444,8.95997601,2094.1,2092.4,9.03845047]
[1770594467951,0.00509949,2094.2,2092.9,9.03845047]
[1770594468450,0.00509949,2094.2,2093.1,9.03845047]
[1770594469451,8.95997601,2095.1,2093.1,9.03845047]
[1770594469749,8.95997601,2095.1,2093.4,9.03845047]
[1770594469943,8.95997601,2094.9,2093.4,9.03845047]
[1770594470344,8.95997601,2094.9,2091.8,7.10445013]
[1770594470345,8.95997601,2094.7,2092.5,9.03845047]
[1770594470549,8.96505351,2094.7,2092.5,9.03845047]
[1770594470949,9.19885601,2094.5,2092.5,9.03845047]
[1770594471152,9.19885601,2094.5,2092.7,9.03845047]
[1770594471340,8.95997601,2094.3,2092.7,9.03845047]
[1770594471842,8.95997601,2094.0,2092.1,9.04328992]
[1770594472242,8.95997601,2094.0,2092.2,6.11750242]
[1770594472443,8.95997601,2094.0,2092.3,9.27758047]
[1770594472846,8.95997601,2094.0,2092.5,9.03845047]
[1770594473252,8.95997601,2094.0,2092.7,9.03845047]
[1770594473550,30.885,2094.4,2092.8,6.14775796]
[1770594473850,8.95997601,2094.3,2092.9,9.03845047]
[1770594474452,8.95997601,2094.6,2093.3,9.03845047]
[1770594475044,8.96505351,2094.7,2093.3,9.03845047]
[1770594475652,8.96505351,2094.7,2093.5,9.03845047]
[1770594476454,8.96505351,2094.7,2092.7,9.03845047]
[1770594476855,8.96505351,2094.7,2092.8,6.08884018]
[1770594477150,8.96505351,2094.7,2092.9,9.03845047]
[1770594477552,8.95997601,2094.0,2092.7,6.19033204]
[1770594477751,9.19891601,2094.0,2092.3,9.03845047]
[1770594477952,8.95997601,2093.9,2092.3,9.03845047]
[1770594478354,8.95997601,2093.7,2092.3,9.03845047]
[1770594479351,8.95997601,2093.6,2092.3,9.03845047]
[1770594480663,8.95997601,2093.9,2092.5,9.27755047]
[1770594481158,8.95997601,2094.2,2092.8,9.03845047]
[1770594482155,8.96505351,2094.7,2093.4,9.03845047]
[1770594482350,0.0050775,2094.7,2094.0,9.03845047]
[1770594482559,8.95997601,2095.3,2094.0,9.04361816]
[1770594482860,2.76031461,2095.4,2094.0,9.04361816]
[1770594482861,8.95997601,2095.2,2094.0,9.04361816]
[1770594483260,8.95997601,2095.1,2094.0,9.04361816]
[1770594483459,8.96614332,2095.1,2094.0,9.04361816]
[1770594484760,0.00616731,2095.1,2094.2,9.03845047]
[1770594485162,8.95997601,2095.4,2094.2,9.03845047]
[1770594486159,0.0044791,2095.4,2094.2,9.03845047]
[1770594486769,8.96445511,2095.4,2094.2,9.03845047]
[1770594487464,0.0044791,2095.4,2094.2,9.03845047]
[1770594487968,8.96445511,2095.4,2094.2,9.03845047]
[1770594491468,8.95997601,2095.8,2094.5,9.03845047]
[1770594491866,8.95997601,2095.7,2094.5,9.03845047]
[1770594492573,8.96420106,2095.7,2094.5,9.03845047]
[1770594492771,8.96420106,2095.7,2094.5,9.30265638]
[1770594492967,8.96420106,2095.7,2094.1,9.03845047]
[1770594493162,8.96420106,2095.7,2094.1,9.53315983]
[1770594493372,8.96420106,2095.7,2094.3,9.03845047]